Cogmind - Beta 16.1 @@@ ROGUE MODE // 2026.04.05 @ 12:55:27 Player: Benkyo Result: Destroyed by YA-6PU(R) with Subdweller Laser Performance ------------- Evolutions (0) 0 Regions Visited (2) 400 Robots Destroyed (33) 165 Value Destroyed (885) 885 Prototype IDs (3) 60 Alien Tech Used (0) 0 Bonus (-10) -10 TOTAL SCORE: 1500 Bonus ------- Friendly Fire -10 Cogmind --------- Core Integrity 0/250 Matter 247/300 Energy 100/100 System Corruption 0% Temperature Cool (6) Movement Rolling (80) Location -10/Subcaves Parts ------- > --- POWER (1) -------- (None) > --- PROPULSION (2) --- Light Treads Wheel > --- UTILITY (2) ------ Light Armor Plating > --- WEAPON (2) ------- Assault Rifle Assault Rifle > --- INVENTORY (5) ---- Light Cannon Light Cannon Plasma Cutter Peak State ------------ > --- POWER ------------ Ion Engine > --- PROPULSION ------- Light Treads Light Treads > --- UTILITY ---------- Huge Storage Unit Seismic Detector > --- WEAPON ----------- Beam Cannon Assault Rifle > --- INVENTORY -------- Ion Engine Light Treads Wheel Wheel Compact Wheel Improved Heat Sink Huge Storage Unit Large Matter Pod Structural Scanner Signal Interpreter Improved Terrain Scanner Assault Rifle Shotgun Shotgun Shotgun Shotgun Light Cannon Light Cannon Light Cannon Mining Laser Plasma Cutter [Rating: 10] Favorites ----------- Power Ion Engine Engine Ion Engine Propulsion Light Treads Treads Light Treads Wheel Compact Wheel Utility Huge Storage Unit Device Seismic Detector Storage Huge Storage Unit Protection Light Armor Plating Weapon Assault Rifle Energy Gun Small Laser Energy Cannon Beam Cannon Ballistic Gun Assault Rifle Special Weapon Mining Laser Build | -11 -10 -10 ------- Run | Yrd Mat Sub Slots Evolved . | . . . Power . | . . . Propulsion . | . . . Utility . | . . . Weapon . | . . . Parts Attached 22 | 7 9 6 Power 3 | 1 1 1 Engine 3 | 1 1 1 Core . | . . . Reactor . | . . . Propulsion 5 | 2 . 3 Treads 3 | 2 . 1 Leg . | . . . Wheel 2 | . . 2 Hover . | . . . Flight . | . . . Utility 8 | 2 5 1 Device 1 | 1 . . Storage 5 | 1 4 . Processor . | . . . Hackware . | . . . Protection 2 | . 1 1 Artifact . | . . . Weapon 6 | 2 3 1 Energy Gun 1 | 1 . . Energy Cannon 1 | . 1 . Ballistic Gun 3 | 1 2 . Ballistic Cannon . | . . . Launcher . | . . . Special Weapon 1 | . . 1 Impact Weapon . | . . . Slashing Weapon . | . . . Piercing Weapon . | . . . Special Melee Weapon . | . . . Unidentified Prototypes . | . . . Parts Lost 5 | . . 5 Power 1 | . . 1 Propulsion 3 | . . 3 Utility 1 | . . 1 Weapon . | . . . Highest Loss Streak 3 | . . 3 To Critical Strikes . | . . . Average Backups 18 | 6 18 20 Power 1 | . 1 . Propulsion 3 | 3 3 3 Utility 5 | . 4 6 Weapon 7 | 1 7 8 Tool/Special . | . . . Unused Backups 20 | 2 3 15 Power 1 | . 1 . Propulsion 4 | 2 1 1 Utility 5 | . . 5 Weapon 9 | . 1 8 Tool/Special 1 | . . 1 Average Slot Usage (%) 98 | . 99 97 Engine 14 | . 14 14 Treads 27 | . 27 26 Device 8 | . 14 . Storage 13 | . 14 11 Protection 5 | . . 13 Energy Gun 1 | . 1 . Energy Cannon 7 | . 12 . Ballistic Gun 19 | . 14 27 Peak Build Rating 10 | 8 10 10 Average Rating 9 | 5 9 9 On Entrance 6 | . 8 10 Avg Prop Armor Cover (%) 14 | 24 21 4 Naked Turns . | . . . Heaviest Build 92 | 12 92 92 Greatest Support 40 | 3 40 40 Greatest Overweight (x) 3 | 3 3 2 Average Overweight (x) 1 | 2 1 1 Largest Inventory Capacity 25 | 8 25 25 Average Capacity 20 | 7 20 21 Most Carried 24 | 8 24 24 Average Carried 18 | 6 18 20 Final Capacity 25 | 8 25 5 Final Carried 23 | 8 23 3 Class Distribution -------------------- 100% | Mutant Dominant Class ---------------- Mutant | -10/Materials Mutant | -10/Subcaves Resources | -11 -10 -10 ----------- Run | Yrd Mat Sub Matter Collected 918 | 291 371 256 Remotely . | . . . Salvage Created 1101 | 138 652 311 Parts 73 | 17 35 21 Haulers Intercepted . | . . . Recyclers Shooed . | . . . Parts Field Recycled . | . . . Retrieved Matter . | . . . Parts Self-Destructed 12 | . . 12 Prevented . | . . . Parts Restored . | . . . Kills | -11 -10 -10 ------- Run | Yrd Mat Sub Combat Hostiles Destroyed 25 | . 18 7 Guns 17 | . 10 7 Cannons 8 | . 8 . Classes Destroyed 7 | 2 3 2 Tunneler 5 | 5 . . Recycler 1 | 1 . . Watcher 2 | . 2 . Swarmer 6 | . 6 . Grunt 13 | . 12 1 Sentry 1 | . . 1 Subdweller 5 | . . 5 Best Kill Streak 3 | 3 3 2 Combat Bots Only 3 | . 3 2 Max Kills in Single Turn 1 | 1 1 1 Gunslinging . | . . . Exploded . | . . . Melee . | . . . Uniques/NPCs Destroyed . | . . . Combat | -11 -10 -10 -------- Run | Yrd Mat Sub Hostile Shots Fired 127 | . 64 63 Missed 29 | . 17 12 Hits 98 | . 47 51 Projectile 98 | . 47 51 Critical Strikes 1 | . . 1 Damage Taken 1600 | . 520 1080 Core 256 | . 166 90 Absorbed by Shields . | . . . Regen/Repaired (Parts) 71 | . 71 . Core Remaining (%) 100 | 100 . . Volleys Fired 91 | 7 47 37 Largest 2 | 2 2 2 Hottest 100 | 60 80 100 Shots Fired 178 | 14 93 71 Gun 134 | 14 52 68 Cannon 41 | . 41 . Launcher . | . . . Special 3 | . . 3 Kinetic 122 | 7 47 68 Thermal 56 | 7 46 3 Explosive . | . . . Electromagnetic . | . . . Robot Hit Streak 33 | 8 10 33 Robot Miss Streak 3 | . 3 1 Penetration Max . | . . . Secondary Targets 1 | . . 1 Max Gunslinging Chain 1 | . . 1 Shots Hit Robots 116 | 8 51 57 Core Hits 50 | 7 26 17 Critical Kills 1 | . 1 . Critical Parts Destroyed . | . . . Critical Strikes 1 | . 1 . Meltdown 1 | . 1 . Melee Attacks . | . . . Impact . | . . . Slashing . | . . . Piercing . | . . . Sneak Attacks . | . . . Combat Hostiles . | . . . Follow-up Attacks . | . . . Damage Inflicted 1605 | 116 814 675 Guns 1181 | 116 390 675 Cannons 424 | . 424 . Explosions . | . . . Melee . | . . . Ramming . | . . . Kinetic 1056 | 40 341 675 Thermal 549 | 76 473 . Explosive . | . . . Electromagnetic . | . . . Impact . | . . . Slashing . | . . . Piercing . | . . . Highest Corruption . | . . . Average Corruption . | . . . Corruption Purged . | . . . Corruption Blocked . | . . . Overload Shots . | . . . Overflow Damage 3 | . 3 . Projectiles 3 | . 3 . Explosions . | . . . Melee . | . . . Knockbacks . | . . . Impact . | . . . Kinetic . | . . . Secondary . | . . . Self-Inflicted Damage . | . . . Shots . | . . . Rammed . | . . . Targets Rammed . | . . . Kicked . | . . . Crushed . | . . . Highest Temperature 258 | . 258 . Average Temperature 70 | . 70 . Received Heat Transfer 396 | . 174 222 Siege Activations . | . . . Martial Activations . | . . . Shielding Activations . | . . . Robots Disrupted . | . . . Combat Hostiles . | . . . Robots Corrupted . | . . . Combat Hostiles . | . . . Parts Fried . | . . . Impact Corruptions . | . . . Robots Melted 1 | . 1 . Combat Hostiles . | . . . Parts Melted 1 | . 1 . Heat Transferred 1163 | 175 988 . Parts Sabotaged . | . . . Parts Stolen . | . . . Parts Stripped . | . . . Power Chain Reactions . | . . . Alert | -11 -10 -10 ------- Run | Yrd Mat Sub Maximum Alert Level . | . . . Low Security (%) 100 | 100 100 . Level 1 . | . . . Level 2 . | . . . Level 3 . | . . . Level 4 . | . . . Level 5 . | . . . High Security . | . . . Max Security . | . . . Peak Influence 125 | 10 125 . Initial . | . . . Average 30 | 1 33 . Influence Increases 556 | 30 486 40 Destroy 0b10 Robot/C 400 | . 360 40 Destroy 0b10 Robot/NC 40 | 30 10 . Destroy Leader 84 | . 84 . Successful Hack 30 | . 30 . Destroy Structure 2 | . 2 . Influence Decreases 556 | 30 458 68 Entered New Map 14 | . . 14 Time Decay 542 | 30 458 54 Squads Dispatched 2 | . 2 . Investigation . | . . . Extermination . | . . . Reinforcement 2 | . 2 . Assault . | . . . Garrison . | . . . Intercept . | . . . Searches Triggered . | . . . Construction Impeded . | . . . Haulers Reinforced . | . . . Active Scanning Responses . | . . . Cargo Convoy Interrupts . | . . . Stealth | -11 -10 -10 --------- Run | Yrd Mat Sub Distress Signals 3 | . 3 . Communications Jammed . | . . . Distress Signals . | . . . Times Spotted 33 | . 24 9 Peak Tracking Total 3 | . 3 2 Tactical Retreats . | . . . Traps | -11 -10 -10 ------- Run | Yrd Mat Sub Traps Triggered . | . . . Indirectly . | . . . Trap Hack Attempts . | . . . Triggered . | . . . Disarmed . | . . . Reprogrammed . | . . . Reused . | . . . Traps Extracted . | . . . Installed . | . . . Triggered . | . . . Machines | -11 -10 -10 ---------- Run | Yrd Mat Sub Machines Disabled . | . . . Max in Single Turn . | . . . Machines Repaired . | . . . Machines Dismantled . | . . . Machines Sabotaged . | . . . Overloaded Fab Kills . | . . . Hacking | -11 -10 -10 --------- Run | Yrd Mat Sub Machines Accessed 6 | . 6 . Terminals 5 | . 5 . Fabricators . | . . . Repair Stations 1 | . 1 . Recycling Units . | . . . Scanalyzers . | . . . Garrison Access . | . . . Total Hacks 18 | . 18 . Successful 11 | . 11 . Failed 7 | . 7 . Catastrophic . | . . . Database Lockouts . | . . . Manual 9 | . 9 . Terminals 14 | . 14 . Fabricators . | . . . Repair Stations 4 | . 4 . Recycling Units . | . . . Scanalyzers . | . . . Garrison Access . | . . . Terminal Hacks 7 | . 7 . Robot Analysis 2 | . 2 . Prototype ID Bank 2 | . 2 . Locate Traps 1 | . 1 . Hauler Manifests 1 | . 1 . Registered Components 1 | . 1 . Fabricator Hacks . | . . . Repair Station Hacks 3 | . 3 . Scan Component 2 | . 2 . Repair 1 | . 1 . Recycling Unit Hacks . | . . . Scanalyzer . | . . . Garrison Access Hacks . | . . . Unauthorized Hacks 1 | . 1 . Terminals 1 | . 1 . Botnet 1 | . 1 . Fabricators . | . . . Repair Stations . | . . . Recycling Units . | . . . Scanalyzers . | . . . Garrison Access . | . . . Data Cores Recovered . | . . . Used . | . . . Hacking Detections 4 | . 4 . Full Trace Events . | . . . Feedback Events . | . . . Feedback Blocked . | . . . Robot Schematics Acquired . | . . . Robots Built . | . . . Authchips . | . . . Time . | . . . Total Robot Build Rating . | . . . Part Schematics Acquired . | . . . Parts Built . | . . . Authchips . | . . . Time . | . . . Total Part Build Rating . | . . . Part Studies Acquired . | . . . Parts Repaired 1 | . 1 . Time 26 | . 26 . Parts Recycled . | . . . Recycled Matter . | . . . Retrieved Matter . | . . . Retrieved Components . | . . . Parts Scanalyzed . | . . . Part Schematics Acquired . | . . . Parts Damaged . | . . . Bothacking | -11 -10 -10 ------------ Run | Yrd Mat Sub Used RIF Installer . | . . . Robots Hacked . | . . . Non-combat . | . . . Combat . | . . . Robot Hacks Applied . | . . . Relay Couplers Released . | . . . Fabnet Peak Effective % . | . . . Robots Rewired . | . . . Allies Hacked . | . . . Hacks Repelled . | . . . Allies | -11 -10 -10 -------- Run | Yrd Mat Sub Total Allies . | . . . Largest Group . | . . . Highest-Rated Group . | . . . Highest-Rated Ally . | . . . Total Orders . | . . . Ally Attacks . | . . . Total Damage . | . . . Kills . | . . . Allies Corrupted . | . . . Allies Melted . | . . . Intel | -11 -10 -10 ------- Run | Yrd Mat Sub Active Infowar (turns) 2566 | 40 2526 . Seismic 2566 | 40 2526 . Robot Analysis Total 2 | . 2 . Derelict Logs Recovered . | . . . Drone Launches . | . . . Drone Recoveries . | . . . Exploration | -11 -10 -10 ------------- Run | Yrd Mat Sub Turns Passed 4496 | 217 2531 1748 Spaces Moved 1543 | 96 866 581 Core 171 | 96 75 . Treads 1243 | . 791 452 Legs . | . . . Wheels 129 | . . 129 Hover . | . . . Flight . | . . . Fastest Speed 50 | 50 160 115 Average Speed 258 | 170 259 271 Slowest Speed 320 | 200 320 320 Overloaded Moves . | . . . Propulsion Burnouts . | . . . Robots Hopped . | . . . Potential Cave-ins . | . . . Cave-ins Triggered . | . . . Exploration Rate (%) 44 | 4 97 33 Regions Visited 2 Branch Regions 1 Pre-discovered Areas 1 | . . 1 Known Exits Taken . | . . . Unknown Exits Taken 2 | 1 1 . Scrap Searched . | . . . Spaces Dug . | . . . Terrain Destroyed . | . . . Melee . | . . . Projectile . | . . . AOE . | . . . Terrain Rammed . | . . . Walls Destroyed . | . . . Machines Disabled . | . . . Actions | -11 -10 -10 --------- Run | Yrd Mat Sub Total 1870 | 135 1060 675 Wait 151 | 11 107 33 Move 1541 | 95 865 581 Hop . | . . . Pick Up 36 | 13 20 3 Fast Attach 7 | 4 1 2 Attach 7 | 3 1 3 Detach 1 | . . 1 Swap 14 | . 9 5 Drop 15 | 2 10 3 Fire 91 | 7 47 37 Melee . | . . . Ram . | . . . Kick . | . . . Crush . | . . . Escape Stasis . | . . . Rewire . | . . . Trap . | . . . Miscellaneous 7 | . . 7 Route ------- -11/Scrapyard -10/Materials (discovered 5 exits: [*Mat x3] / [*Min] / [*Sub]) -10/Subcaves (discovered 2 exits: [*Mat x2]) History --------- Turn | Location | Event 14 | -11/Scrapyard | Discovered new exit (range 16) 218 | -11/Scrapyard | Entered Materials 314 | -10/Materials | Build established: Mutant 443 | -10/Materials | Discovered new exit (range 8) 460 | -10/Materials | Discovered new exit (range 16) 950 | -10/Materials | Discovered new exit (range 4) 996 | -10/Materials | Discovered new exit (range 14) 1018 | -10/Materials | Derelicts attacked the area 1625 | -10/Materials | Repaired Lgt. Treads 2030 | -10/Materials | Discovered new exit (range 8) 2520 | -10/Materials | Core integrity fell below 50% 2749 | -10/Materials | Entered Subcaves 2750 | -10/Subcaves | Approached by a straggling Scientist 2776 | -10/Subcaves | A swath of the cavern ceiling suddenly collapsed 3416 | -10/Subcaves | A swath of the cavern ceiling suddenly collapsed 3768 | -10/Subcaves | Learned location of Zion (-7) 3768 | -10/Subcaves | Met a Zionite searching for "candidates" 3783 | -10/Subcaves | Discovered new exit (range 5) 4188 | -10/Subcaves | Core integrity fell below 20% 4312 | -10/Subcaves | Shifting Twisted Machinery released Sub. Beam Cannon 4383 | -10/Subcaves | Discovered new exit (range 7) 4392 | -10/Subcaves | Shifting Twisted Machinery released Mak. System Restoration Module 4462 | -10/Subcaves | Shifting Twisted Machinery released Mak. System Restoration Module 4497 | -10/Subcaves | Destroyed by YA-6PU(R) with Subdweller Laser Last Messages --------------- 04286_ Subatomizers dissect the Sub. Optics. 04298_ Subatomizers dissect the Ion Engine. Sub. Beam Cannon falls loose from the Twisted Machinery. 04333_ Subatomizers dissect the Ion Engine. 04333_ V3-LOL(R) destroyed. 04337_ Scrap Shield Fragment affixed to Scrap Shield (+38). 04338_ Acquired 35 matter. 04340_ Scrap Shield Fragment affixed to Scrap Shield (+49). 04383_ EXIT=FOUND Mak. System Restoration Module falls loose from the Twisted Machinery. 04394_ Acquired 3 matter. 04432_ U2-5PX(R) destroyed. 04435_ Acquired 18 matter. 04438_ Scrap Shield Fragment affixed to Scrap Shield (+48). 04440_ Scrap Shield Fragment affixed to Scrap Shield (+44). 04443_ Scrap Shield Fragment affixed to Scrap Shield (+46). Mak. System Restoration Module falls loose from the Twisted Machinery. 04489_ Scrap Shield destroyed. 04495_ Com. Wheel destroyed. 04495_ Ion Engine destroyed. Map ----- +----------------------------------------------------+ | ?????????????????????????????????????????????????? | | ?????????????????????????????????????????????????? | | ?????????????????????????????????????????????????? | | ?????????????????????????????????????????????????? | | ?????????????????????????????????????????????????? | | ?????????????????????????????????????????????????? | | ?????????????????????????????????###??????????#### | | ???????????????????????????????### ##????##???#""# | | ??????????????????????????????## #??? #???#"" | | ??????????????????????????????# #### #### "" | | ??????????????????????????????# < ## | | ??????????????????????????????# # ""%"""" " | | ?????????????????????????????## ## "# " #### " " | | ?????????????????????????????# !## %% "#??## | | ?????????????????????????????##%# ##!"##???### | | ????????????????????????????## ## ##???####?###! | | ???????????????????????????## # # ##??# "#?#""# | | ???????????????????????????# #"""" #### "### "] | | ??????????????????????????## " #"""" "#?# ## [ | | ??????????????????????????# #####"""]""### ##" * | | ?????????????????????????### "######" ###[ | | ????????????????????????## # ## #?## | | ????????????????????????# """""#?## | | ????????????????????????# """" ### | | ????????????????????????# """ ## """##""" | | ????????????????????????#@R"" #### " "###""""""" | | ????????????????????????##R" "###" " ""###"" " | | ???????????????????????### """ " " """?##" " | | ??????????????# !" ### # " " """"" "??##""" | | ????????????????"""" "##""#### ## ???##" | | ???????????????""" # #""####???####??"???# | | ??????????????#" # ?###" #????????????#?? | | ??????????????## ???# ?????" #??????????????? | | ??????????????????????????? #??????????????? | | ??????????????????????????? ##??????????????? | | ???????????????????????????###???????????????? # | | ?????????????????????????????????????????????? ? | | ???????????????????????????????????????????????? ? | | ?????????????????????????????????????????????????? | | ?????????????????????????????????????????????????? | | ?????????????????????????????????????????????????? | | ?????????????????????????????????????????????????? | | ?????????????????????????????????????????????????? | | ?????????????????????????????????????????????????? | | ?????????????????????????????????????????????????? | | ?????????????????????????????????????????????????? | | ?????????????????????????????????????????????????? | | ?????????????????????????????????????????????????? | | ?????????????????????????????????????????????????? | | ?????????????????????????????????????????????????? | +----------------------------------------------------+ Best States ------------- Heat Dissipation 25 Energy Generation 10 Energy Capacity 250 Matter Stores 300 Matter Capacity 300 Sight Range 16 Terrain Scan Density 10 Armor Coverage 800 Evasion (%) 50 Recoil Reduction 2 Item Schematics ----------------- None Robot Schematics ------------------ None Fabricated ------------ Nothing Repaired ---------- Lgt. Treads | 49% | -10/Materials Studied --------- None Alien Tech Used ----------------- None Achievements -------------- Survival Of The Most Covered Challenges ------------ None Game ------ Seed BarrageRocketPit Manual? 0 Play Time 00:26:24 Cumulative 610.7 hours Start 2026.04.05 @ 12:30:40 End 2026.04.05 @ 12:55:27 Sessions 1 Manual Loads 0 Difficulty Rogue Special Mode None Game No. 123 Rogue 115 Adventurer 1 Explorer 7 Win Type - Total 51 Types 17/4/15/1/1/1/8/1/1/2 Lore% 78 Gallery% 81 Achievement% 59 Wizard Run 0 Options --------- Layout 0 ASCII 0 Keyboard 0 Movement Mouse Keybinds 0 Fullscreen 1 Font 24/Smallcaps Map View 76x50 Zoom Use 0% Tactical HUD 1 Map Filters NONE Filters NONE Steam 1 RUN: c73656d9-f6bb-4254-be56-8e1e3588ded5